Cogmind - Beta 13 *** ADVENTURER MODE // 2024.04.06 @ 17:20:23 Player: dF0X Result: Self-destructed Performance ------------- Evolutions (3) 1500 Regions Visited (4) 800 Robots Destroyed (50) 250 Value Destroyed (1297) 1297 Prototype IDs (1) 20 Alien Tech Used (0) 0 Bonus (22) 22 TOTAL SCORE: 3889 Bonus ------- High Alert Combat Kills 22 Cogmind --------- Core Integrity 700/700 Matter 231/300 Energy 178/180 System Corruption 0% Temperature Cool (0) Movement Rolling (95) Ox1 Location -7/Factory Parts ------- > --- POWER (2) -------- Light Deuterium Engine Light Deuterium Engine > --- PROPULSION (2) --- Wheel Wheel > --- UTILITY (6) ------ Structural Scanner Advanced Visual Processing Unit Seismic Detector ECM Suite Hacking Suite System Shield > --- WEAPON (3) ------- EM Pulse Cannon EM Pulse Cannon Assault Cannon > --- INVENTORY (5) ---- Improved Light Cannon Datajack Mining Laser Peak State ------------ > --- POWER ------------ Light Deuterium Engine Light Deuterium Engine > --- PROPULSION ------- Wheel Wheel > --- UTILITY ---------- Structural Scanner Advanced Visual Processing Unit Seismic Detector ECM Suite Hacking Suite System Shield > --- WEAPON ----------- EM Pulse Cannon EM Pulse Cannon Assault Cannon > --- INVENTORY -------- Improved Light Cannon Datajack Mining Laser [Rating: 29] Favorites ----------- Power Ion Engine Engine Ion Engine Propulsion Wheel Wheel Wheel Utility Structural Scanner Device Structural Scanner Storage Small Storage Unit Processor Advanced Visual Processing Unit Hackware Hacking Suite Weapon Improved Light Cannon Energy Gun EM Pulse Gun Energy Cannon EM Pulse Cannon Ballistic Gun Assault Rifle Ballistic Cannon Improved Light Cannon Special Weapon Mining Laser Special Melee Weapon Datajack Build | -11 -10 -9 -8 -7 ------- Run | Yrd Mat Mat Mat Fac Slots Evolved 6 | . . 2 2 2 Power 1 | . . . . 1 Propulsion . | . . . . . Utility 4 | . . 1 2 1 Weapon 1 | . . 1 . . Parts Attached 49 | 6 9 18 12 4 Power 9 | 1 . 4 3 1 Engine 9 | 1 . 4 3 1 Core . | . . . . . Reactor . | . . . . . Propulsion 5 | 2 . 2 1 . Treads . | . . . . . Leg . | . . . . . Wheel 5 | 2 . 2 1 . Hover . | . . . . . Flight . | . . . . . Utility 11 | 1 2 2 4 2 Device 5 | . 1 2 1 1 Storage 3 | 1 1 . 1 . Processor 1 | . . . 1 . Hackware 2 | . . . 1 1 Protection . | . . . . . Artifact . | . . . . . Weapon 24 | 2 7 10 4 1 Energy Gun 8 | 1 2 5 . . Energy Cannon 3 | . . . 3 . Ballistic Gun 2 | 1 . 1 . . Ballistic Cannon 5 | . 2 2 . 1 Launcher . | . . . . . Special Weapon 4 | . 2 1 1 . Impact Weapon . | . . . . . Slashing Weapon . | . . . . . Piercing Weapon . | . . . . . Special Melee Weapon 2 | . 1 1 . . Unidentified Prototypes . | . . . . . Parts Lost 2 | . . 2 . . Power . | . . . . . Propulsion . | . . . . . Utility 1 | . . 1 . . Weapon 1 | . . 1 . . Highest Loss Streak 1 | . . 1 . . To Critical Strikes . | . . . . . Average Slot Usage (%) 99 | . 99 98 98 99 Engine 11 | . 14 11 9 15 Wheel 21 | . 28 21 18 15 Device 21 | . 11 21 26 22 Storage 9 | . 16 11 5 . Processor 1 | . . . 3 7 Hackware 3 | . . . 8 15 Energy Gun 10 | . 12 17 1 . Energy Cannon 3 | . . . 7 15 Ballistic Cannon 14 | . 13 14 16 7 Naked Turns . | . . . . . Heaviest Build 31 | 14 17 26 28 31 Greatest Support 20 | 20 20 20 20 20 Greatest Overweight (x) 2 | 1 . 2 1 1 Average Overweight (x) . | . . . . 1 Largest Inventory Capacity 8 | 8 8 8 8 5 Average Capacity 7 | 6 8 8 6 5 Most Carried 8 | 1 8 8 8 4 Average Carried 6 | . 4 7 6 2 Final Capacity 8 | 8 8 8 5 5 Final Carried 8 | . 8 8 4 3 Class Distribution -------------------- 33% | Hacker-Skirmisher 25% | Infiltrator-Skirmisher 20% | Mutant 19% | Skirmisher Dominant Class ---------------- Mutant | -10/Materials Infiltrator-Skirmisher | -9/Materials Hacker-Skirmisher | -8/Materials Hacker-Skirmisher | -7/Factory Resources | -11 -10 -9 -8 -7 ----------- Run | Yrd Mat Mat Mat Fac Matter Collected 1172 | 185 89 457 346 95 Remotely . | . . . . . Salvage Created 1404 | . 61 809 496 38 Parts 114 | . 9 68 37 . Haulers Intercepted . | . . . . . Recyclers Shooed . | . . . . . Parts Field Recycled . | . . . . . Retrieved Matter . | . . . . . Parts Self-Destructed . | . . . . . Prevented . | . . . . . Kills | -11 -10 -9 -8 -7 ------- Run | Yrd Mat Mat Mat Fac Combat Hostiles Destroyed 39 | . 5 23 11 . Guns 10 | . 2 8 . . Cannons 27 | . 3 15 9 . AOE 2 | . . . 2 . Classes Destroyed 8 | . 1 6 1 . Worker 1 | . . . 1 . Operator 3 | . . 2 1 . Watcher 7 | . . 2 4 1 Swarmer 18 | . 5 9 4 . Grunt 8 | . . 5 3 . Brawler 1 | . . 1 . . Duelist 2 | . . 1 1 . Sentry 10 | . . 7 3 . Best Kill Streak 9 | . 3 6 9 1 Combat Bots Only 6 | . 3 6 6 . Max Kills in Single Turn 2 | . 1 2 2 1 Gunslinging . | . . . . . Exploded 2 | . . . 2 . Melee . | . . . . . Uniques/NPCs Destroyed . | . . . . . Combat | -11 -10 -9 -8 -7 -------- Run | Yrd Mat Mat Mat Fac Hostile Shots Fired 133 | . 14 80 39 . Missed 36 | . 4 21 11 . Damage Taken 933 | . 54 558 321 . Core 262 | . 18 139 105 . Absorbed by Shields . | . . . . . Ignored by Resistances 275 | . 20 162 93 . Regen/Repaired (Parts) 95 | . . 78 . 17 Core Remaining (%) 84 | 100 92 65 80 . Volleys Fired 91 | . 15 45 29 2 Largest 3 | . 2 3 3 3 Hottest 170 | . 135 138 141 170 Shots Fired 240 | . 28 130 76 6 Gun 88 | . 10 77 1 . Cannon 143 | . 13 52 72 6 Launcher . | . . . . . Special 9 | . 5 1 3 . Kinetic 120 | . 13 53 52 2 Thermal 45 | . 5 36 4 . Explosive . | . . . . . Electromagnetic 75 | . 10 41 20 4 Robot Hit Streak 14 | . 2 14 11 4 Robot Miss Streak 3 | . 2 3 2 2 Penetration Max . | . . . . . Secondary Targets . | . . . . . Shots Hit Robots 134 | . 10 73 48 3 Core Hits 65 | . 4 37 23 1 Critical Kills . | . . . . . Critical Parts Destroyed . | . . . . . Critical Strikes 7 | . 1 4 2 . Burn 1 | . . 1 . . Blast 4 | . 1 1 2 . Corrupt 2 | . . 2 . . Melee Attacks 2 | . 1 1 . . Impact . | . . . . . Slashing . | . . . . . Piercing . | . . . . . Sneak Attacks 2 | . 1 1 . . Combat Hostiles . | . . . . . Follow-up Attacks . | . . . . . Damage Inflicted 2681 | . 131 1207 1163 180 Guns 565 | . 44 507 14 . Cannons 2016 | . 87 700 1099 130 Explosions 100 | . . . 50 50 Melee . | . . . . . Ramming . | . . . . . Kinetic 1436 | . 87 706 643 . Thermal 347 | . . 233 64 50 Explosive . | . . . . . Electromagnetic 898 | . 44 268 456 130 Impact . | . . . . . Slashing . | . . . . . Piercing . | . . . . . Highest Corruption . | . . . . . Average Corruption . | . . . . . Corruption Purged . | . . . . . Corruption Blocked . | . . . . . Overload Shots . | . . . . . Overflow Damage 32 | . . . 20 12 Projectiles 29 | . . . 20 9 Explosions 3 | . . . . 3 Melee . | . . . . . Knockbacks 11 | . 1 3 7 . Impact . | . . . . . Kinetic 11 | . 1 3 7 . Secondary . | . . . . . Self-Inflicted Damage . | . . . . . Shots . | . . . . . Rammed . | . . . . . Targets Rammed . | . . . . . Kicked . | . . . . . Crushed . | . . . . . Highest Temperature 553 | . 75 553 311 102 Average Temperature 112 | . 31 142 100 56 Received Heat Transfer 336 | . . 129 207 . Effects 9 | . . 9 . . Shutdowns 3 | . . 3 . . Energy Bleed 1 | . . 1 . . Matter Decay 2 | . . 2 . . Damage (minor) 2 | . . 2 . . Damage (core) 1 | . . 1 . . Siege Activations . | . . . . . Robots Corrupted . | . . . . . Combat Hostiles . | . . . . . Parts Fried 6 | . . . 4 2 Impact Corruptions . | . . . . . Robots Melted . | . . . . . Combat Hostiles . | . . . . . Parts Melted . | . . . . . Heat Transferred 816 | . . 629 137 50 Parts Sabotaged . | . . . . . Parts Stolen . | . . . . . Parts Stripped . | . . . . . Power Chain Reactions 2 | . . . 1 1 Alert | -11 -10 -9 -8 -7 ------- Run | Yrd Mat Mat Mat Fac Peak Influence 448 | . 129 448 329 134 Initial 88 | . . 5 88 82 Average 158 | . 70 229 130 113 Maximum Alert Level 2 | . . 2 1 . Low Security (%) 66 | 100 100 40 69 100 Level 1 30 | . . 52 30 . Level 2 2 | . . 6 . . Level 3 . | . . . . . Level 4 . | . . . . . Level 5 . | . . . . . High Security . | . . . . . Max Security . | . . . . . Squads Dispatched 3 | . . 1 2 . Investigation 1 | . . 1 . . Extermination . | . . . . . Reinforcement 2 | . . . 2 . Assault . | . . . . . Garrison . | . . . . . Intercept . | . . . . . Searches Triggered . | . . . . . Construction Impeded . | . . . . . Haulers Reinforced . | . . . . . Active Scanning Responses . | . . . . . Cargo Convoy Interrupts . | . . . . . Stealth | -11 -10 -9 -8 -7 --------- Run | Yrd Mat Mat Mat Fac Distress Signals 5 | . . 2 3 . Communications Jammed . | . . . . . Distress Signals . | . . . . . Times Spotted 73 | . 8 33 31 1 Peak Tracking Total 6 | . 3 6 5 1 Tactical Retreats 8 | . . 3 5 . Traps | -11 -10 -9 -8 -7 ------- Run | Yrd Mat Mat Mat Fac Traps Triggered 1 | . . 1 . . Indirectly . | . . . . . Trap Hack Attempts . | . . . . . Triggered . | . . . . . Disarmed . | . . . . . Reprogrammed . | . . . . . Reused . | . . . . . Traps Extracted . | . . . . . Installed . | . . . . . Triggered . | . . . . . Machines | -11 -10 -9 -8 -7 ---------- Run | Yrd Mat Mat Mat Fac Machines Disabled 2 | . . 1 1 . Max in Single Turn 1 | . . 1 1 . Machines Repaired . | . . . . . Machines Dismantled . | . . . . . Machines Sabotaged . | . . . . . Overloaded Fab Kills . | . . . . . Hacking | -11 -10 -9 -8 -7 --------- Run | Yrd Mat Mat Mat Fac Machines Accessed 20 | . 3 10 5 2 Terminals 10 | . 3 5 2 . Fabricators 1 | . . . . 1 Repair Stations 3 | . . 2 . 1 Recycling Units 3 | . . 1 2 . Scanalyzers 2 | . . 2 . . Garrison Access 1 | . . . 1 . Total Hacks 35 | . 3 19 9 4 Successful 22 | . . 11 8 3 Failed 13 | . 3 8 1 1 Catastrophic . | . . . . . Database Lockouts . | . . . . . Manual . | . . . . . Terminals 17 | . 3 9 5 . Fabricators 1 | . . . . 1 Repair Stations 7 | . . 4 . 3 Recycling Units 5 | . . 2 3 . Scanalyzers 4 | . . 4 . . Garrison Access 1 | . . . 1 . Terminal Hacks 7 | . . 2 5 . Record 4 | . . 1 3 . Unreport Threat 2 | . . 1 1 . Hauler Manifests 1 | . . . 1 . Fabricator Hacks 1 | . . . . 1 Build 1 | . . . . 1 Repair Station Hacks 6 | . . 4 . 2 Scan Component 3 | . . 2 . 1 Repair 3 | . . 2 . 1 Recycling Unit Hacks 3 | . . 1 2 . Retrieve Components 3 | . . 1 2 . Scanalyzer 4 | . . 4 . . Insert Component 2 | . . 2 . . Analyze 2 | . . 2 . . Garrison Access Hacks 1 | . . . 1 . Unlock Access 1 | . . . 1 . Unauthorized Hacks . | . . . . . Terminals . | . . . . . Fabricators . | . . . . . Repair Stations . | . . . . . Recycling Units . | . . . . . Scanalyzers . | . . . . . Garrison Access . | . . . . . Data Cores Recovered 3 | . . 2 1 . Used 1 | . . . 1 . Hacking Detections 9 | . 2 5 2 . Full Trace Events 1 | . . . 1 . Feedback Events . | . . . . . Feedback Blocked . | . . . . . Robot Schematics Acquired . | . . . . . Robots Built 1 | . . . . 1 Authchips . | . . . . . Time 40 | . . . . 40 Total Robot Build Rating 1 | . . . . 1 Part Schematics Acquired 2 | . . 2 . . Parts Built . | . . . . . Authchips . | . . . . . Time . | . . . . . Total Part Build Rating . | . . . . . Parts Repaired 3 | . . 2 . 1 Time 65 | . . 52 . 13 Parts Recycled . | . . . . . Recycled Matter . | . . . . . Retrieved Matter . | . . . . . Retrieved Components 14 | . . 2 12 . Parts Scanalyzed 2 | . . 2 . . Part Schematics Acquired 2 | . . 2 . . Parts Damaged . | . . . . . Bothacking | -11 -10 -9 -8 -7 ------------ Run | Yrd Mat Mat Mat Fac Used RIF Installer . | . . . . . Robots Hacked 2 | . 1 1 . . Non-combat 2 | . 1 1 . . Combat . | . . . . . Robot Hacks Applied 2 | . 1 1 . . parse_system 2 | . 1 1 . . Relay Couplers Released . | . . . . . Fabnet Peak Effective % . | . . . . . Robots Rewired . | . . . . . Allies Hacked . | . . . . . Hacks Repelled . | . . . . . Allies | -11 -10 -9 -8 -7 -------- Run | Yrd Mat Mat Mat Fac Total Allies 1 | . . . . 1 Largest Group 1 | . . . . 1 Highest-Rated Group 6 | . . . . 6 Highest-Rated Ally 6 | . . . . 6 Total Orders . | . . . . . Ally Attacks . | . . . . . Total Damage . | . . . . . Kills . | . . . . . Allies Corrupted . | . . . . . Allies Melted . | . . . . . Intel | -11 -10 -9 -8 -7 ------- Run | Yrd Mat Mat Mat Fac Robot Analysis Total . | . . . . . Derelict Logs Recovered . | . . . . . Drone Launches . | . . . . . Drone Recoveries . | . . . . . Exploration | -11 -10 -9 -8 -7 ------------- Run | Yrd Mat Mat Mat Fac Turns Passed 2435 | 41 461 1061 638 234 Spaces Moved 2131 | 36 471 863 540 221 Core 3 | 3 . . . . Treads . | . . . . . Legs . | . . . . . Wheels 2128 | 33 471 863 540 221 Hover . | . . . . . Flight . | . . . . . Fastest Speed 50 | 50 80 80 80 95 Average Speed 90 | 80 80 94 93 95 Slowest Speed 110 | 100 80 110 95 95 Overloaded Moves . | . . . . . Propulsion Burnouts . | . . . . . Robots Hopped . | . . . . . Cave-ins Triggered . | . . . . . Exploration Rate (%) 44 | 3 79 83 48 9 Regions Visited 4 Branch Regions . Pre-discovered Areas . | . . . . . Known Exits Taken . | . . . . . Unknown Exits Taken 4 | 1 1 1 1 . Scrap Searched . | . . . . . Spaces Dug 8 | . 4 1 3 . Terrain Destroyed 21 | . 4 2 11 4 Melee . | . . . . . Projectile 15 | . 4 2 9 . AOE 6 | . . . 2 4 Terrain Rammed . | . . . . . Walls Destroyed . | . . . . . Machines Disabled . | . . . . . Actions | -11 -10 -9 -8 -7 --------- Run | Yrd Mat Mat Mat Fac Total 2418 | 47 512 1009 610 240 Wait 71 | . 6 53 1 11 Move 2127 | 35 470 862 539 221 Hop . | . . . . . Pick Up 51 | 6 10 18 15 2 Fast Attach . | . . . . . Attach 18 | 6 1 6 2 3 Detach . | . . . . . Swap 31 | . 8 12 10 1 Drop 27 | . 1 12 14 . Fire 91 | . 15 45 29 2 Melee 2 | . 1 1 . . Ram . | . . . . . Kick . | . . . . . Crush . | . . . . . Escape Stasis . | . . . . . Rewire . | . . . . . Trap . | . . . . . Miscellaneous . | . . . . . Route ------- -11/Scrapyard -10/Materials (discovered 5 exits: *Mat x3 / [*Min] / [Sub]) -9/Materials (discovered 5 exits: *Mat x3 / [*Min x2]) -8/Materials (discovered 3 exits: *Fac / [*Sto] / Gar) -7/Factory History --------- Turn | Location | Event 11 | -11/Scrapyard | Discovered new exit (range 15) 42 | -11/Scrapyard | Entered Materials 109 | -10/Materials | Discovered new exit (range 14) 166 | -10/Materials | Discovered new exit (range 3) 307 | -10/Materials | Build established: Mutant 373 | -10/Materials | Discovered new exit (range 11) 437 | -10/Materials | Discovered new exit (range 9) 468 | -10/Materials | Discovered new exit (range 9) 503 | -10/Materials | Entered another Materials area 503 | -9/Materials | Evolved 2 slots: Utility x1, Weapon x1 504 | -9/Materials | Discovered new exit (range 15) 678 | -9/Materials | Discovered new exit (range 12) 793 | -9/Materials | Discovered new exit (range 16) 806 | -9/Materials | Build established: Infiltrator-Skirmisher 839 | -9/Materials | Repaired EM Pulse Gun 1044 | -9/Materials | Discovered new exit (range 9) 1399 | -9/Materials | Build established: Skirmisher 1417 | -9/Materials | Repaired Wheel 1512 | -9/Materials | Discovered new exit (range 10) 1564 | -9/Materials | Entered another Materials area 1564 | -8/Materials | Evolved 2 slots: Utility x2 1592 | -8/Materials | Discovered new exit (range 6) 1946 | -8/Materials | Discovered new exit (range 20) 1965 | -8/Materials | Build established: Hacker-Skirmisher 2010 | -8/Materials | Identified exit to Garrison 2202 | -8/Materials | Entered Factory 2202 | -7/Factory | Evolved 2 slots: Power x1, Utility x1 2349 | -7/Factory | Fabricated K-01 Serf (x1) 2402 | -7/Factory | Repaired Seismic Detector 2436 | -7/Factory | Self-destructed Last Messages --------------- 02316_ Acquired 38 matter. 02322_ K-01 Serf cleans the Assembly Bed. 02323_ Acquired 57 matter. 02327_ K-01 Serf cleans the Assembly Bed. 02349_ Fabricator completes K-01 Serf. [Achievement: My Command Is Your Wish] 02389_ Connecting with Repair Station... >>Scan(Seismic Detector) Scanning Seismic Detector... Ready to Repair: Seismic Detector Rating: 1 Time: 13 >>Repair Repairing Seismic Detector... ETC: 13 02390_ K-01 Serf cleans the Neutrino Reactor. 02402_ Repair station completes Seismic Detector repairs. 02402_ Acquired Seismic Detector. 02404_ K-01 Serf cleans the Neutrino Reactor. Map ----- +----------------------------------------------------+ | ?????????????????????????????????????????????????? | | ?????????????????????????????????????????????????? | | ?????????????????????????????????????????????????? | | ?????????????????????????????????????????????????? | | ?????????????????????????????????????????????????? | | ?????????????????????????????????????????????????? | | ?????????????????????????u ?????????????????????? | | ????????????????????????? ? ##???????????????? | | ????????????????????????? ##???????????????? | | ????????????????????????? ###??????????????? | | ????????????????????????? ###??????????????? | | ????????????????????????? T##??????????????? | | ###### #####?????????????k ##??????????????? | | ######+#####????????????? ##???????????????? | | ##??????????? # ##???????????????? | | ##??????????? # k##???????????????? | | ##??????????? # ##???????????????? | | !##??????????? # ##???????????????? | | ##? # ##???????????????? | | ##?############ ##???????????????? | | ##### # ##???????????????? | | ##### ! # ##???????????????? | | + + ] # ##???????????????? | | ^##### # ##???????????????? | | #######+##+#### ##???????????????? | | ##?#### @ ##???????????????? | | ###+########??### ##???????????????? | | ####### ##???????????????? | | ###### !!/ ##???????????????? | | ! + u !!/ ##???????????????? | | ###### k !/[ ##???????????????? | | """ """ #######+#### ##???????????????? | | """ """ ### # k " " ##???????????????? | | """ """ ### """" # "Y" ##???????????????? | | + / """" # """ ##???????????????? | | """ ### """" # u u##???????????????? | | "" """ !### """" # ?????????????? | | R"" """ ### """" # ########+####?????????????? | | "" ### """" # ###### #?????????????? | | ############# # ##????????????????????????? | | #############! # # ????????????????????????? | | ???????????########### # ????????????????????????? | | ???????????########### # ????????????????????????? | | ????????????????????## ??????????????????????????? | | ?????????????????????? ??????????????????????????? | | ?????????????????????? ??????????????????????????? | | ?????????????????????????????????????????????????? | | ?????????????????????????????????????????????????? | | ?????????????????????????????????????????????????? | | ?????????????????????????????????????????????????? | +----------------------------------------------------+ Best States ------------- Heat Dissipation 34 Energy Generation 23 Energy Capacity 265 Matter Stores 300 Matter Capacity 400 Sight Range 20 Terrain Scan Density 10 ECM Strength 1 Resistance: KI 20 Resistance: TH 20 Resistance: EX 20 Resistance: EM 20 Resistance: I 20 Resistance: S 20 Resistance: P 20 Evasion (%) 44 Offensive Hacking 20 Defensive Hacking 10 Item Schematics ----------------- ECM Suite | -9/Materials | Scanalyzed Imp. EM Shotgun | -9/Materials | Scanalyzed Robot Schematics ------------------ None Fabricated ------------ K-01 Serf | x1 | -7/Factory | Preloaded Alien Tech Used ----------------- None Achievements -------------- Dynamic Key Everything Is Under Control My Command Is Your Wish Safety First Challenges ------------ None Game ------ Seed GravityDimensionalHumpback Manual? 0 Play Time 01:15:34 Cumulative 12.2 hours Start 2024.03.03 @ 19:44:02 End 2024.04.06 @ 17:20:23 Sessions 7 Manual Loads 0 Difficulty Adventurer Special Mode None Game No. 14 Rogue 10 Adventurer 4 Explorer 0 Win Type - Total 0 Types 0/0/0/0/0/0/0/0/0 Lore% 1 Gallery% 12 Achievement% 8 Wizard Run 0 Options --------- Layout 1 ASCII 0 Keyboard 0 Movement Mouse Keybinds 0 Fullscreen 1 Font 48/Smallcaps Map View 50x35 Zoom Use 0% Tactical HUD 1 Map Filters NONE Filters NONE Steam 1 RUN: bbbf78c0-8f96-41ff-a7e1-7e1e7274634f